[Event "9. Korbacher Open 2017"]
[Site "Korbach"]
[Date "2017.10.21"]
[Round "4"]
[White "Boehme, Jonas"]
[Black "Forgach, Andreas"]
[Result "1/2-1/2"]
[ECO "B33"]
[WhiteElo "1675"]
[BlackElo "1851"]
[Annotator "NA RC"]
[PlyCount "38"]
[EventDate "2017.??.??"]
[EventType "swiss"]
[EventCountry "GER"]
[SourceTitle "playchess.com"]
[Source "ChessBase"]
[SourceQuality "1"]
[TimeControl "40/5400+30:1800+30"]

{[%evp 8,38,28,22,30,8,27,0,38,56,38,-15,0,-61,-45,-61,-73,-76,-83,-94,4,20,18,32767,19,18,97,32767,59,31,64,32767,15]} 1. e4 {[%emt 0:00:00]} c5 {[%emt 0:00:19]} 2. Nf3 {[%emt 0:00:16]} Nc6 {[%emt 0:00:11]} 3. d4 {[%emt 0:00:08]} cxd4 {[%emt 0:00:13]} 4. Nxd4 {[%emt 0:00:24]} Nf6 {[%emt 0:00:26]} 5. Nc3 {[%emt 0:00:04]} e6 {[%emt 0:00:46]} 6. Ndb5 {[%emt 0:00:40] LiveBook: 4126 Games} Bb4 {[%emt 0:03:53]} 7. Bf4 {[%emt 0:00:03]} e5 {[%emt 0:03:35] B45: Sicilian Four Knights} (7... Nxe4 $5 8. Nc7+ (8. Qf3 d5 9. Nc7+ Kf8 10. Nxa8 e5 11. Bd2 Nxd2 12. Qxd5 Nxf1 13. Qxd8+ Nxd8 14. O-O-O Nc6 15. Nd5 Bd2+ 16. Kb1 Nxh2 17. Rxd2 Ng4 {1-0 (47) Kononenko,D (2617)-Westerberg,J (2452) Pardubice 2015}) 8... Kf8 $11) 8. Bg5 {[%emt 0:00:03]} O-O {[%emt 0:02:11]} 9. Bc4 {[%emt 0:08:54]} a6 {[%emt 0:18:36]} 10. Nd6 {[%emt 0:01:34]} ({White should play} 10. Bxf6 $11 Qxf6 11. Nc7 Bxc3+ 12. bxc3) 10... Nd4 {[%emt 0:09:48]} 11. Nxf7 {[%emt 0:07:33]} Rxf7 {[%emt 0:01:47]} 12. Bxf7+ {[%emt 0:00:13]} Kxf7 {[%emt 0:00:06]} 13. f4 $146 {[%emt 0:00:31] [#]} ({Predecessor:} 13. O-O Bxc3 14. bxc3 Ne6 15. Bxf6 Qxf6 {0-1 (30) Markovic,P-Vujosevic,D (2007) Belgrade 2007}) 13... Bxc3+ {[%emt 0:13:56]} (13... d6 $1 $17 14. O-O Bxc3 15. bxc3 Ne6) 14. bxc3 {[%emt 0:00:03]} Ne6 {[%emt 0:02:30]} 15. fxe5 {[%emt 0:23:31]} Nxg5 {[%emt 0:09:09]} 16. exf6 {[%emt 0:00:03]} g6 {[%emt 0:02:18]} (16... gxf6 $11 17. e5 f5) 17. h4 Ne6 {[%emt 0:03:02]} 18. h5 {[%emt 0:04:00]} g5 $1 {[%emt 0:01:00]} ({Avoid the trap} 18... Qxf6 $2 19. Rf1 $18) 19. e5 {[%emt 0:06:25]} Qa5 $11 {[%emt 0:01:59]} 1/2-1/2

[Event "9. Korbacher Open 2017"]
[Site "Korbach"]
[Date "2017.10.21"]
[Round "4"]
[White "Naujocks, Christian"]
[Black "Basovskiy, Jana"]
[Result "0-1"]
[ECO "B40"]
[WhiteElo "1654"]
[BlackElo "1825"]
[Annotator "NA RC"]
[PlyCount "78"]
[EventDate "2017.??.??"]
[EventType "swiss"]
[EventCountry "GER"]
[SourceTitle "playchess.com"]
[Source "ChessBase"]
[SourceQuality "1"]
[TimeControl "40/5400+30:1800+30"]

{[%evp 8,78,38,31,16,-20,32767,3,-18,-7,-6,-46,-22,-28,32767,-25,-18,-41,-22,-294,-66,-70,-12,-41,-29,-56,0,32767,32767,-90,-104,-78,-108,-182,-184,-177,-154,-187,-167,-234,-120,-168,-153,-159,32767,-183,-167,-178,-45,-69,-77,-265,-160,-304,-300,-328,-322,-327,-346,-340,-357,32767,-376,32767,32767,32767,32767,-856,-664,32767,-5013,-5037,-5021]} 1. e4 {[%emt 0:00:00]} c5 {[%emt 0:00:02]} 2. Nf3 {[%emt 0:00:00]} e6 {[%emt 0:00:04]} 3. d4 {[%emt 0:00:15]} cxd4 {[%emt 0:00:05]} 4. Nxd4 {[%emt 0:00:13]} Nf6 {[%emt 0:00:05]} 5. Nc3 {[%emt 0:00:27]} Nc6 {[%emt 0:00:06]} 6. Be3 {[%emt 0:00:45]} Bb4 {[%emt 0:00:07]} 7. Bd3 {[%emt 0:06:04]} d5 {[%emt 0:01:34]} 8. Nxc6 {[%emt 0:05:31] B45: Sicilian Four Knights} bxc6 {[%emt 0:01:28] LiveBook: 54 Games} 9. Bd2 {[%emt 0:02:54]} (9. e5 d4 10. exf6 dxe3 11. fxg7 exf2+ 12. Kf1 Rg8 13. Bxh7 Rxg7 14. Qxd8+ Kxd8 15. Bd3 f5 16. Kxf2 Bc5+ 17. Kf1 e5 18. h4 Be6 {½-½ (47) Plenca,J (2396)-Martinovic,S (2570) Trieste 2016}) 9... O-O {[%emt 0:11:39]} 10. O-O {[%emt 0:00:25]} a5 $146 {[%emt 0:11:44]} ({Predecessor:} 10... Bxc3 11. Bxc3 dxe4 12. Bxf6 Qxf6 13. Bxe4 Ba6 14. Re1 Qxb2 15. Bxc6 Rac8 {0-1 (72) Mitkovski,Z (2174)-Andonovski,L (2303) Skopje 2011}) 11. Qe2 {[%emt 0:06:54]} c5 {[%emt 0:03:04]} 12. exd5 {[%emt 0:15:03]} exd5 {[%emt 0:01:41]} 13. b3 $2 {[%emt 0:05:11] [#]} (13. Qd1 $11) 13... Re8 $2 {[%emt 0:01:45]} ({Black should try} 13... c4 $1 $19 {[%cal Rc4d3][%mdl 512]} 14. bxc4 Re8) 14. Qd1 $1 {[%emt 0:00:49] [#]} Ba6 {[%emt 0:05:03]} ({Black should play} 14... c4 $1 $15 {[%mdl 512]} 15. Be2 (15. bxc4 Bg4) 15... Ba6 16. bxc4 Bxc4 17. Bxc4 dxc4) 15. a3 {[%emt 0:03:23]} Bxc3 {[%emt 0:01:17]} 16. Bxc3 {[%emt 0:00:15]} c4 {[%emt 0:25:37]} 17. bxc4 {[%emt 0:04:41]} dxc4 {[%emt 0:00:08]} 18. Be2 {[%emt 0:05:19]} (18. Bf5 $11) 18... Qxd1 19. Bxd1 {[%emt 0:00:11]} Nd5 {[%emt 0:01:11]} 20. Bf3 {[%emt 0:10:26]} (20. Be1 $17) 20... Nxc3 {[%emt 0:00:37]} 21. Bxa8 {[%emt 0:00:07]} Ne2+ {[%emt 0:03:05]} 22. Kh1 {[%emt 0:00:10]} Rxa8 {[%emt 0:00:05]} 23. Rfe1 {[%emt 0:02:04]} Nd4 {[%emt 0:02:33]} ({Black should try} 23... c3 $19 24. Red1 Bb5) 24. Rac1 {[%emt 0:02:16]} Kf8 {[%emt 0:01:56]} 25. Re4 {[%emt 0:01:16]} Ne6 {[%emt 0:01:36]} 26. Rb1 {[%emt 0:01:13]} Rd8 {[%emt 0:01:07]} 27. Re5 {[%emt 0:00:40]} Nd4 {[%emt 0:03:38]} (27... c3 $17 28. Rxa5 Be2) 28. Rxa5 {[%emt 0:00:30]} Bc8 29. Rc5 $2 {[%emt 0:02:11]} ({White must play} 29. Rd1 $15 Ke8 30. c3) 29... Nxc2 {[%emt 0:00:55]} 30. h4 {[%emt 0:03:10] [#]} Be6 $1 {[%emt 0:00:30]} 31. a4 {[%emt 0:01:33]} Ra8 {[%emt 0:01:17]} 32. a5 {[%emt 0:00:38]} Nd4 {[%emt 0:02:12]} 33. Rb6 Nb3 {[%emt 0:00:30]} 34. Rcb5 {[%emt 0:07:26]} Nxa5 {[%emt 0:03:31]} 35. Rb1 {[%emt 0:01:37]} Nb3 36. Rc6 Ke7 {[%emt 0:03:06]} 37. Rd1 {[%emt 0:01:20]} Ra1 {[%emt 0:00:38]} 38. Rcd6 {[%emt 0:02:49]} Rxd1+ {[%emt 0:01:35]} 39. Rxd1 {[%emt 0:00:07]} c3 $19 {[%emt 0:00:28]} 0-1

[Event "9. Korbacher Open 2017"]
[Site "Korbach"]
[Date "2017.10.21"]
[Round "4"]
[White "Simukov, Erik"]
[Black "Flach, Helene"]
[Result "1/2-1/2"]
[ECO "B23"]
[WhiteElo "1621"]
[BlackElo "1862"]
[Annotator "NA RC"]
[PlyCount "43"]
[EventDate "2017.??.??"]
[EventType "swiss"]
[EventCountry "GER"]
[SourceTitle "playchess.com"]
[Source "ChessBase"]
[SourceQuality "1"]
[TimeControl "40/5400+30:1800+30"]

{[%evp 8,42,-11,-11,-20,-31,-31,-42,3,-25,-9,-37,-29,-61,-39,-45,32767,-51,-44,-56,-54,-97,-77,-89,-31,-68,32767,32767,32767,32767,32767,32767,32767,32767,-219,-187,-120]} 1. e4 {[%emt 0:00:00]} c5 {[%emt 0:00:13]} 2. Nc3 {[%emt 0:00:00]} e6 {[%emt 0:00:06]} 3. Bc4 {[%emt 0:00:50]} a6 {[%emt 0:00:13]} 4. d3 {[%emt 0:00:31] B20: Sicilian: Unusual White 2nd moves} (4. a4 Nc6 5. Nf3 Nf6 6. Qe2 Nd4 7. Nxd4 cxd4 8. Nd1 d5 9. exd5 Nxd5 10. O-O Be7 11. f4 O-O 12. d3 b6 13. f5 Nc7 14. fxe6 Bxe6 {0-1 (32) Stanca,A (2253)-Szabo,G (2546) Slanic Moldova 2011}) 4... b5 {[%emt 0:00:29] LiveBook: 4 Games} 5. Bb3 {[%emt 0:00:14]} Bb7 {[%emt 0:00:13]} 6. a3 {[%emt 0:01:46]} Nc6 {[%emt 0:00:27]} 7. Nge2 $146 {[%emt 0:01:39]} ({Predecessor:} 7. f4 d6 8. Nf3 Qc7 9. O-O Nf6 10. Qe1 Be7 11. f5 e5 {½-½ (46) Parpinel,M (1860)-Romieu,J (1962) Arette 2004}) 7... g6 {[%emt 0:05:58]} 8. O-O {[%emt 0:02:01]} Bg7 {[%emt 0:00:14]} 9. f4 {[%emt 0:00:30]} Nge7 {[%emt 0:00:33]} 10. Qe1 {[%emt 0:00:34]} O-O {[%emt 0:02:35]} 11. Qf2 {[%emt 0:02:50]} d6 {[%emt 0:01:28]} 12. Kh1 {[%emt 0:01:54]} Kh8 {[%emt 0:05:09]} 13. h4 {[%emt 0:07:01]} Qd7 {[%emt 0:10:15]} 14. Bd2 {[%emt 0:07:17]} Rac8 {[%emt 0:07:52]} 15. Rae1 {[%emt 0:04:30]} Nd8 {[%emt 0:14:13]} 16. Ng3 {[%emt 0:05:17]} (16. h5 $1 $11) 16... f5 {[%emt 0:03:17]} 17. h5 {[%emt 0:01:54]} Kg8 {[%emt 0:03:11]} 18. hxg6 {[%emt 0:01:44]} hxg6 {[%emt 0:00:24]} 19. Qe2 {[%emt 0:06:21]} Kf7 {[%emt 0:02:25]} 20. exf5 {[%emt 0:03:24]} Rh8+ {[%emt 0:00:31]} 21. Kg1 {[%emt 0:00:16]} gxf5 $17 {[%emt 0:01:24]} (21... Nxf5 $19 22. Nxf5 gxf5) 22. Nd1 {[%emt 0:01:37]} 1/2-1/2

[Event "9. Korbacher Open 2017"]
[Site "Korbach"]
[Date "2017.10.21"]
[Round "5"]
[White "Stork, Oliver"]
[Black "Maar, Samuel"]
[Result "1-0"]
[ECO "A15"]
[WhiteElo "2176"]
[BlackElo "1998"]
[Annotator "NA"]
[PlyCount "59"]
[EventDate "2017.??.??"]
[EventType "swiss"]
[EventCountry "GER"]
[SourceTitle "playchess.com"]
[Source "ChessBase"]
[SourceQuality "1"]
[TimeControl "40/5400+30:1800+30"]

1. c4 {[%emt 0:00:00]} Nf6 {[%emt 0:00:06]} 2. g3 {[%emt 0:00:00]} g6 {[%emt 0:00:04]} 3. Bg2 {[%emt 0:00:00]} Bg7 {[%emt 0:00:03]} 4. Nc3 {[%emt 0:00:00]} O-O {[%emt 0:00:15]} 5. d3 {[%emt 0:00:00]} d6 {[%emt 0:01:08]} 6. e4 {[%emt 0:00:24]} c5 {[%emt 0:03:25]} 7. Nge2 {[%emt 0:00:08]} Nc6 {[%emt 0:00:13]} 8. O-O {[%emt 0:00:09]} e6 {[%emt 0:02:28]} 9. h3 {[%emt 0:00:49]} Rb8 {[%emt 0:04:33]} 10. Be3 {[%emt 0:02:53]} b6 {[%emt 0:03:01]} 11. Qd2 {[%emt 0:03:20]} Bb7 {[%emt 0:09:15]} 12. Bh6 {[%emt 0:01:55]} d5 {[%emt 0:05:11]} 13. Bxg7 {[%emt 0:10:43]} Kxg7 {[%emt 0:00:20]} 14. exd5 {[%emt 0:08:09]} exd5 {[%emt 0:00:45]} 15. Nxd5 {[%emt 0:00:23]} Nxd5 {[%emt 0:00:29]} 16. Bxd5 {[%emt 0:13:27]} Nb4 {[%emt 0:02:58]} 17. Bxb7 {[%emt 0:00:50]} Rxb7 {[%emt 0:00:01]} 18. d4 {[%emt 0:01:03]} b5 {[%emt 0:19:45]} 19. Qc3 {[%emt 0:09:16]} bxc4 {[%emt 0:04:19]} 20. dxc5+ {[%emt 0:01:45]} f6 {[%emt 0:01:56]} 21. Qxc4 {[%emt 0:04:48]} Nd3 {[%emt 0:03:08]} 22. Nd4 {[%emt 0:02:00]} Qc8 {[%emt 0:22:06]} 23. Qxd3 {[%emt 0:01:12]} Rxb2 {[%emt 0:00:24]} 24. Rab1 {[%emt 0:01:11]} Rxb1 {[%emt 0:07:45]} 25. Rxb1 {[%emt 0:00:09]} Re8 {[%emt 0:00:19]} 26. Qb5 {[%emt 0:01:35]} Re7 {[%emt 0:02:11]} 27. c6 {[%emt 0:01:29]} Qxh3 {[%emt 0:00:57]} 28. Qc5 {[%emt 0:02:17]} Re8 {[%emt 0:03:20]} 29. Qxa7+ {[%emt 0:00:24]} Kh6 {[%emt 0:01:11]} 30. Qd7 {[%emt 0:00:28]} 1-0

[Event "9. Korbacher Open 2017"]
[Site "Korbach"]
[Date "2017.10.21"]
[Round "5"]
[White "Schmidt, Andre"]
[Black "Van Randtwijk, Mick"]
[Result "1-0"]
[ECO "E47"]
[WhiteElo "2154"]
[BlackElo "2028"]
[Annotator "NA"]
[PlyCount "99"]
[EventDate "2017.??.??"]
[EventType "swiss"]
[EventCountry "GER"]
[SourceTitle "playchess.com"]
[Source "ChessBase"]
[SourceQuality "1"]
[TimeControl "40/5400+30:1800+30"]

1. d4 {[%emt 0:00:00]} Nf6 {[%emt 0:00:06]} 2. c4 {[%emt 0:00:00]} e6 {[%emt 0:00:07]} 3. Nc3 {[%emt 0:00:00]} Bb4 {[%emt 0:00:10]} 4. e3 {[%emt 0:00:19]} O-O {[%emt 0:00:12]} 5. Bd3 {[%emt 0:00:17]} Re8 {[%emt 0:01:03]} 6. Nf3 {[%emt 0:00:26]} d6 {[%emt 0:01:23]} 7. Bc2 {[%emt 0:02:31]} Nbd7 {[%emt 0:02:10]} 8. O-O {[%emt 0:03:08]} e5 {[%emt 0:03:39]} 9. h3 {[%emt 0:05:25]} b6 {[%emt 0:07:48]} 10. Ne2 {[%emt 0:01:23]} d5 {[%emt 0:03:14]} 11. a3 {[%emt 0:02:40]} Bf8 {[%emt 0:01:24]} 12. Bb3 {[%emt 0:02:22]} Bb7 {[%emt 0:08:09]} 13. Nc3 {[%emt 0:02:41]} exd4 {[%emt 0:00:55]} 14. exd4 {[%emt 0:00:34]} dxc4 {[%emt 0:00:41]} 15. Bxc4 {[%emt 0:00:16]} h6 {[%emt 0:08:18]} 16. Qb3 {[%emt 0:08:41]} Re7 {[%emt 0:05:37]} 17. Nh4 {[%emt 0:00:46]} Qe8 {[%emt 0:01:11]} 18. Nf5 {[%emt 0:00:50]} a6 {[%emt 0:06:54]} 19. Nxe7+ {[%emt 0:03:13]} Bxe7 {[%emt 0:01:09]} 20. Re1 {[%emt 0:01:38]} b5 {[%emt 0:03:31]} 21. Bf4 {[%emt 0:03:16]} Nb6 {[%emt 0:00:32]} 22. Bf1 {[%emt 0:00:47]} Nfd5 {[%emt 0:00:56]} 23. Bg3 {[%emt 0:02:59]} Qd7 {[%emt 0:00:51]} 24. Ne4 {[%emt 0:00:57]} Nf6 {[%emt 0:03:46]} 25. Nc5 {[%emt 0:01:12]} Bxc5 {[%emt 0:00:11]} 26. dxc5 {[%emt 0:00:05]} Nbd5 {[%emt 0:00:28]} 27. Rad1 {[%emt 0:02:48]} Qc6 {[%emt 0:01:26]} 28. Qc2 {[%emt 0:02:49]} Nh5 {[%emt 0:01:22]} 29. Rd4 {[%emt 0:01:52]} g6 {[%emt 0:11:26]} 30. b4 {[%emt 0:01:37]} a5 {[%emt 0:02:04]} 31. Qd2 {[%emt 0:00:28]} axb4 {[%emt 0:01:13]} 32. axb4 {[%emt 0:00:02]} Nxg3 {[%emt 0:01:44]} 33. fxg3 {[%emt 0:00:03]} Kg7 {[%emt 0:00:19]} 34. Qb2 {[%emt 0:01:12]} Kh7 {[%emt 0:00:10]} 35. Qf2 {[%emt 0:00:46]} Kg7 {[%emt 0:00:47]} 36. Kh2 {[%emt 0:06:13]} Ra4 {[%emt 0:04:11]} 37. Qd2 {[%emt 0:04:20]} Ra8 {[%emt 0:04:40]} 38. Qe2 {[%emt 0:04:17]} Nc3 {[%emt 0:02:28]} 39. Qe5+ {[%emt 0:00:32]} Kg8 {[%emt 0:00:10]} 40. Rd3 {[%emt 0:09:11]} Ne4 {[%emt 0:35:44]} 41. Red1 {[%emt 0:31:40]} Nf6 {[%emt 0:03:26]} 42. Rd8+ {[%emt 0:00:44]} Kg7 {[%emt 0:01:21]} 43. Qe7 {[%emt 0:00:51]} Nh7 {[%emt 0:03:17]} 44. R1d7 {[%emt 0:01:07]} Ng5 {[%emt 0:01:41]} 45. Qe5+ {[%emt 0:03:30]} Qf6 {[%emt 0:00:00]} 46. Qxf6+ {[%emt 0:00:00]} Kxf6 {[%emt 0:00:00]} 47. Rxa8 {[%emt 0:00:00]} Bxa8 {[%emt 0:00:00]} 48. Rxc7 {[%emt 0:00:00]} Ne6 {[%emt 0:00:00]} 49. Rc8 {[%emt 0:00:00]} Bb7 {[%emt 0:00:00]} 50. Rb8 {[%emt 0:00:00]} 1-0

[Event "9. Korbacher Open 2017"]
[Site "Korbach"]
[Date "2017.10.21"]
[Round "5"]
[White "Andersen, Lars Christoff"]
[Black "Tschoepe, Nino"]
[Result "1/2-1/2"]
[ECO "A27"]
[WhiteElo "2107"]
[BlackElo "1978"]
[Annotator "NA"]
[PlyCount "38"]
[EventDate "2017.??.??"]
[EventType "swiss"]
[EventCountry "GER"]
[SourceTitle "playchess.com"]
[Source "ChessBase"]
[SourceQuality "1"]
[TimeControl "40/5400+30:1800+30"]

1. c4 {[%emt 0:00:00]} e5 {[%emt 0:00:08]} 2. Nc3 {[%emt 0:00:00]} Nc6 {[%emt 0:00:05]} 3. Nf3 {[%emt 0:00:00]} Bc5 {[%emt 0:00:34]} 4. e3 {[%emt 0:00:54]} Nf6 {[%emt 0:02:08]} 5. d4 {[%emt 0:04:55]} exd4 {[%emt 0:00:14]} 6. exd4 {[%emt 0:00:11]} Bb4 {[%emt 0:00:47]} 7. d5 {[%emt 0:01:56]} Qe7+ {[%emt 0:00:45]} 8. Qe2 {[%emt 0:06:32]} Bxc3+ {[%emt 0:02:00]} 9. bxc3 {[%emt 0:00:20]} Na5 {[%emt 0:01:00]} 10. Qxe7+ {[%emt 0:06:32]} Kxe7 {[%emt 0:00:04]} 11. Ba3+ {[%emt 0:00:16]} d6 {[%emt 0:02:33]} 12. Bd3 {[%emt 0:02:43]} b6 {[%emt 0:01:43]} 13. O-O {[%emt 0:03:34]} Re8 {[%emt 0:00:22]} 14. Rfe1+ {[%emt 0:06:00]} Kf8 {[%emt 0:01:36]} 15. Rxe8+ {[%emt 0:00:40]} Kxe8 {[%emt 0:00:06]} 16. Nd4 {[%emt 0:04:22]} Ba6 {[%emt 0:01:45]} 17. Nb5 {[%emt 0:01:30]} Bxb5 {[%emt 0:06:35]} 18. cxb5 {[%emt 0:00:13]} Kf8 {[%emt 0:02:18]} 19. Re1 {[%emt 0:06:28]} Nxd5 {[%emt 0:01:06]} 1/2-1/2

[Event "9. Korbacher Open 2017"]
[Site "Korbach"]
[Date "2017.10.21"]
[Round "5"]
[White "Sanati, Charlotte"]
[Black "Hagedorn, Alfons"]
[Result "1-0"]
[ECO "D06"]
[WhiteElo "2098"]
[BlackElo "1923"]
[Annotator "NA"]
[PlyCount "74"]
[EventDate "2017.??.??"]
[EventType "swiss"]
[EventCountry "GER"]
[SourceTitle "playchess.com"]
[Source "ChessBase"]
[SourceQuality "1"]
[TimeControl "40/5400+30:1800+30"]

1. d4 {[%emt 0:00:00]} d5 {[%emt 0:00:36]} 2. c4 {[%emt 0:00:00]} Bf5 {[%emt 0:00:15]} 3. Nc3 {[%emt 0:00:12]} e6 {[%emt 0:00:07]} 4. Nf3 {[%emt 0:00:31]} Nf6 {[%emt 0:00:10]} 5. Qb3 {[%emt 0:04:06]} Nc6 {[%emt 0:00:32]} 6. Bg5 {[%emt 0:07:42]} dxc4 {[%emt 0:02:24]} 7. Qxc4 {[%emt 0:04:31]} Nb4 {[%emt 0:02:08]} 8. O-O-O {[%emt 0:08:00]} h6 {[%emt 0:04:00]} 9. e4 {[%emt 0:05:30]} Bg4 {[%emt 0:04:05]} 10. Bh4 {[%emt 0:03:19]} g5 {[%emt 0:01:30]} 11. Bg3 {[%emt 0:00:41]} c6 {[%emt 0:00:32]} 12. h4 {[%emt 0:04:57]} b5 {[%emt 0:07:16]} 13. Qe2 {[%emt 0:02:04]} Bg7 {[%emt 0:04:21]} 14. hxg5 {[%emt 0:03:44]} Nd7 {[%emt 0:02:53]} 15. Kb1 {[%emt 0:04:04]} hxg5 {[%emt 0:03:12]} 16. Rxh8+ {[%emt 0:00:56]} Bxh8 {[%emt 0:00:07]} 17. Qd2 {[%emt 0:08:11]} a5 {[%emt 0:07:15]} 18. Be2 {[%emt 0:02:42]} Bf6 {[%emt 0:04:30]} 19. Nh2 {[%emt 0:14:23]} Bxe2 {[%emt 0:00:55]} 20. Qxe2 {[%emt 0:00:50]} Qb6 {[%emt 0:01:37]} 21. e5 {[%emt 0:02:39]} Be7 {[%emt 0:01:57]} 22. Qh5 {[%emt 0:02:28]} Nd5 {[%emt 0:02:53]} 23. Ne4 {[%emt 0:00:44]} Nf4 {[%emt 0:03:43]} 24. Bxf4 {[%emt 0:00:55]} gxf4 {[%emt 0:01:32]} 25. Ng4 {[%emt 0:00:29]} Bf8 {[%emt 0:12:54]} 26. Ng5 {[%emt 0:02:28]} O-O-O {[%emt 0:03:12]} 27. Nxf7 {[%emt 0:00:48]} Be7 {[%emt 0:08:50]} 28. Nxd8 {[%emt 0:00:29]} Qxd8 {[%emt 0:00:25]} 29. Qf7 {[%emt 0:01:17]} Nc5 {[%emt 0:02:07]} 30. Kc2 {[%emt 0:02:35]} Ne4 {[%emt 0:01:32]} 31. Qxe6+ {[%emt 0:00:59]} Kb7 {[%emt 0:02:03]} 32. d5 {[%emt 0:05:21]} cxd5 {[%emt 0:01:08]} 33. Qxd5+ {[%emt 0:01:43]} Qxd5 {[%emt 0:00:01]} 34. Rxd5 {[%emt 0:00:09]} Kc6 {[%emt 0:00:14]} 35. Rd4 {[%emt 0:00:31]} Nc5 {[%emt 0:00:52]} 36. Rxf4 {[%emt 0:00:26]} Ne6 {[%emt 0:00:14]} 37. Rf7 {[%emt 0:00:46]} Kd5 1-0

[Event "9. Korbacher Open 2017"]
[Site "Korbach"]
[Date "2017.10.21"]
[Round "5"]
[White "Nielsen, Klaus"]
[Black "Timar-Geng, Zoltan"]
[Result "1/2-1/2"]
[ECO "C54"]
[WhiteElo "2092"]
[BlackElo "1859"]
[Annotator "NA"]
[PlyCount "81"]
[EventDate "2017.??.??"]
[EventType "swiss"]
[EventCountry "GER"]
[SourceTitle "playchess.com"]
[Source "ChessBase"]
[SourceQuality "1"]
[TimeControl "40/5400+30:1800+30"]

1. e4 {[%emt 0:00:00]} e5 {[%emt 0:00:07]} 2. Nf3 {[%emt 0:00:00]} Nc6 {[%emt 0:00:05]} 3. Bc4 {[%emt 0:00:19]} Bc5 {[%emt 0:00:07]} 4. c3 {[%emt 0:00:27]} Nf6 {[%emt 0:00:17]} 5. d4 {[%emt 0:02:16]} exd4 {[%emt 0:00:09]} 6. cxd4 {[%emt 0:00:08]} Bb4+ {[%emt 0:00:08]} 7. Bd2 {[%emt 0:00:09]} Bxd2+ {[%emt 0:01:50]} 8. Nbxd2 {[%emt 0:00:06]} d5 {[%emt 0:00:23]} 9. exd5 {[%emt 0:00:33]} Nxd5 {[%emt 0:00:07]} 10. O-O {[%emt 0:01:03]} O-O {[%emt 0:01:24]} 11. Ne4 {[%emt 0:18:46]} Bg4 {[%emt 0:05:32]} 12. h3 {[%emt 0:00:42]} Bh5 {[%emt 0:03:40]} 13. Ng3 {[%emt 0:01:33]} Bxf3 {[%emt 0:09:25]} 14. Qxf3 {[%emt 0:00:08]} Nb6 {[%emt 0:00:10]} 15. Bd3 {[%emt 0:02:23]} Qxd4 {[%emt 0:12:32]} 16. Rad1 {[%emt 0:03:24]} Qxb2 {[%emt 0:10:31]} 17. Bb1 {[%emt 0:04:15]} Qf6 {[%emt 0:02:13]} 18. Qd3 {[%emt 0:08:01]} Qg6 {[%emt 0:02:23]} 19. Nf5 {[%emt 0:01:18]} Rae8 {[%emt 0:06:52]} 20. Rfe1 {[%emt 0:11:47]} Kh8 {[%emt 0:08:22]} 21. Re3 {[%emt 0:02:12]} Rxe3 {[%emt 0:03:24]} 22. Qxe3 {[%emt 0:00:07]} Qe6 {[%emt 0:01:29]} 23. Qc3 {[%emt 0:04:56]} Qe5 {[%emt 0:01:52]} 24. Qd3 {[%emt 0:01:02]} g6 {[%emt 0:04:03]} 25. Qa3 {[%emt 0:11:06]} Re8 {[%emt 0:02:36]} 26. Nh6 {[%emt 0:00:19]} Kg7 {[%emt 0:00:32]} 27. Ng4 {[%emt 0:00:16]} Qe7 {[%emt 0:06:20]} 28. Qc3+ {[%emt 0:03:26]} f6 {[%emt 0:00:57]} 29. Qd2 {[%emt 0:02:34]} Kh8 {[%emt 0:05:42]} 30. Bxg6 {[%emt 0:04:16]} Rd8 {[%emt 0:01:41]} 31. Bd3 {[%emt 0:04:39]} Nc4 {[%emt 0:04:10]} 32. Qc2 {[%emt 0:04:37]} N4e5 {[%emt 0:00:39]} 33. Bf5 {[%emt 0:01:57]} Rxd1+ {[%emt 0:01:06]} 34. Qxd1 {[%emt 0:00:07]} Nxg4 {[%emt 0:00:39]} 35. hxg4 {[%emt 0:03:48]} Ne5 {[%emt 0:02:03]} 36. Qb3 {[%emt 0:00:49]} c5 {[%emt 0:01:10]} 37. Qd5 {[%emt 0:00:46]} Nc6 {[%emt 0:00:23]} 38. Be4 {[%emt 0:02:39]} Kg7 {[%emt 0:01:20]} 39. Qf5 {[%emt 0:00:08]} Kh8 {[%emt 0:00:22]} 40. Qc8+ {[%emt 0:00:55]} Nd8 {[%emt 0:30:54]} 41. Bxb7 {[%emt 0:12:02]} 1/2-1/2